Cogmind - Beta 14 @@@ ROGUE MODE // 2024.08.19 @ 22:00:56 Player: Sgt. SmokeWeed Result: Self-destructed Performance ------------- Evolutions (3) 1500 Regions Visited (6) 1200 Robots Destroyed (56) 280 Value Destroyed (1601) 1601 Prototype IDs (26) 520 Alien Tech Used (0) 0 Bonus (455) 455 TOTAL SCORE: 5556 Bonus ------- High Alert Combat Kills 23 Follower Combat Kills 132 Aligned with FarCom 300 Cogmind --------- Core Integrity 564/700 Matter 300/300 Energy 6/100 System Corruption 23% Temperature Cool (0) Movement Treading (170) Location -7/Factory Parts ------- > --- POWER (1) -------- (None) > --- PROPULSION (2) --- Armored Treads > --- UTILITY (6) ------ Improved Heat Sink Improved Cooling System > --- WEAPON (4) ------- Heavy Particle Gun > --- INVENTORY (5) ---- Improved Cooling System Peak State ------------ > --- POWER ------------ Improved Deuterium Engine > --- PROPULSION ------- Armored Treads Armored Treads > --- UTILITY ---------- Improved Heat Sink Improved Cooling System Modified TNC Core Analyzer Hacking Suite > --- WEAPON ----------- Heavy Particle Gun Heavy Particle Gun Heavy Particle Gun Advanced EMP Blaster > --- INVENTORY -------- Improved Cooling System [Rating: 46] Favorites ----------- Power Ion Engine Engine Ion Engine Power Core Light Nuclear Core Propulsion Light Treads Treads Light Treads Utility Modified TNC Device Tractor Beam Processor Modified TNC Hackware Hacking Suite Weapon Light Cannon Energy Gun Heavy Particle Gun Ballistic Gun Assault Rifle Ballistic Cannon Light Cannon Launcher Grenade Launcher Build | -11 -10 -10 -10 -9 -8 -7 ------- Run | Yrd Mat Min Exi Min Mat Fac Slots Evolved 6 | . . . . . 4 2 Power . | . . . . . . . Propulsion . | . . . . . . . Utility 4 | . . . . . 2 2 Weapon 2 | . . . . . 2 . Parts Attached 30 | 5 5 2 1 2 13 2 Power 3 | 1 . . . 1 . 1 Engine 2 | 1 . . . 1 . . Core 1 | . . . . . . 1 Reactor . | . . . . . . . Propulsion 5 | 2 1 . . . 2 . Treads 5 | 2 1 . . . 2 . Leg . | . . . . . . . Wheel . | . . . . . . . Hover . | . . . . . . . Flight . | . . . . . . . Utility 6 | . . 1 1 . 3 1 Device 3 | . . 1 . . 2 . Storage . | . . . . . . . Processor 2 | . . . 1 . . 1 Hackware 1 | . . . . . 1 . Protection . | . . . . . . . Artifact . | . . . . . . . Weapon 16 | 2 4 1 . 1 8 . Energy Gun 8 | 1 . . . . 7 . Energy Cannon . | . . . . . . . Ballistic Gun 1 | 1 . . . . . . Ballistic Cannon 2 | . 2 . . . . . Launcher 5 | . 2 1 . 1 1 . Special Weapon . | . . . . . . . Impact Weapon . | . . . . . . . Slashing Weapon . | . . . . . . . Piercing Weapon . | . . . . . . . Special Melee Weapon . | . . . . . . . Unidentified Prototypes 3 | . . . . . 3 . Parts Lost 8 | . . . . . . 8 Power 2 | . . . . . . 2 Propulsion . | . . . . . . . Utility 3 | . . . . . . 3 Weapon 3 | . . . . . . 3 Highest Loss Streak 8 | . . . . . . 8 To Critical Strikes . | . . . . . . . Average Slot Usage (%) 82 | . 71 75 91 100 86 83 Engine 11 | . 14 14 14 14 9 6 Treads 23 | . 28 28 28 28 18 14 Device 10 | . . 4 14 14 16 15 Processor 5 | . . . 6 14 9 9 Hackware 2 | . . . . . 5 6 Energy Gun 6 | . . . . . 14 21 Ballistic Cannon 9 | . 13 14 14 14 5 . Launcher 11 | . 13 14 14 14 8 6 Peak Build Rating 46 | 5 5 7 13 18 42 46 Average Rating 17 | 3 4 5 9 15 31 41 On Entrance 12 | . 5 5 7 13 18 42 Naked Turns . | . . . . . . . Heaviest Build 28 | 9 11 13 13 21 28 28 Greatest Support 40 | 40 40 40 40 40 40 40 Greatest Overweight (x) 1 | 1 . . . . . . Average Overweight (x) . | . . . . . . . Largest Inventory Capacity 5 | 5 5 5 5 5 5 5 Average Capacity 5 | 5 5 5 5 5 5 5 Most Carried 5 | . 2 2 2 4 5 1 Average Carried 2 | . . 1 2 2 3 1 Final Capacity 5 | 5 5 5 5 5 5 5 Final Carried 4 | . 1 2 2 4 1 1 Class Distribution -------------------- 63% | Mutant 36% | Skirmisher Dominant Class ---------------- Mutant | -10/Materials Mutant | -10/Mines Mutant | -10/Exiles Mutant | -9/Mines Skirmisher | -8/Materials Skirmisher | -7/Factory Resources | -11 -10 -10 -10 -9 -8 -7 ----------- Run | Yrd Mat Min Exi Min Mat Fac Matter Collected 1069 | 207 277 99 . 46 435 5 Remotely 464 | . . 11 . 46 407 . Salvage Created 1833 | . 418 69 . . 783 563 Parts 97 | . 26 8 . . 34 29 Haulers Intercepted 4 | . 1 . . . 3 . Recyclers Shooed 4 | . 4 . . . . . Parts Field Recycled . | . . . . . . . Retrieved Matter . | . . . . . . . Parts Self-Destructed . | . . . . . . . Prevented . | . . . . . . . Kills | -11 -10 -10 -10 -9 -8 -7 ------- Run | Yrd Mat Min Exi Min Mat Fac Combat Hostiles Destroyed 37 | . 10 3 . . 13 11 Guns 11 | . . . . . 6 5 Cannons 4 | . 1 1 . . 2 . AOE 22 | . 9 2 . . 5 6 Classes Destroyed 11 | . 7 1 . . 1 2 Worker 3 | . 2 . . . . 1 Builder 2 | . 1 . . . . 1 Tunneler 2 | . . 1 . . 1 . Hauler 4 | . 1 . . . 3 . Recycler 4 | . 2 1 . . 1 . Watcher 4 | . 2 . . . 2 . Swarmer 10 | . 3 3 . . . 4 Grunt 23 | . 7 . . . 11 5 Brawler 1 | . . . . . . 1 Sentry 2 | . . . . . 2 . Hunter 1 | . . . . . . 1 Best Kill Streak 7 | . 6 5 . . 4 7 Combat Bots Only 5 | . 4 3 . . 3 5 Max Kills in Single Turn 4 | . 2 3 . . 3 4 Gunslinging 1 | . . . . . 1 . Exploded 4 | . 2 2 . . 1 4 Melee . | . . . . . . . Uniques/NPCs Destroyed . | . . . . . . . Combat | -11 -10 -10 -10 -9 -8 -7 -------- Run | Yrd Mat Min Exi Min Mat Fac Hostile Shots Fired 141 | . 30 11 . . 38 62 Missed 41 | . 7 4 . . 10 20 Damage Taken 1794 | . 366 61 . . 443 924 Core 359 | . 110 16 . . 97 136 Absorbed by Shields . | . . . . . . . Core Remaining (%) 77 | 100 . . . 49 82 . Volleys Fired 99 | . 28 7 . . 42 22 Largest 4 | . 2 2 . . 3 4 Hottest 201 | . 65 68 . . 165 201 Shots Fired 204 | . 47 10 . . 96 51 Gun 105 | . . . . . 59 46 Cannon 64 | . 28 7 . . 29 . Launcher 35 | . 19 3 . . 8 5 Special . | . . . . . . . Kinetic 64 | . 28 7 . . 29 . Thermal 105 | . . . . . 59 46 Explosive 30 | . 19 3 . . 8 . Electromagnetic 5 | . . . . . . 5 Robot Hit Streak 8 | . 7 1 . . 8 5 Robot Miss Streak 8 | . 2 8 . . 2 4 Penetration Max . | . . . . . . . Secondary Targets 1 | . . . . . 1 . Max Gunslinging Chain 1 | . . . . . 1 . Shots Hit Robots 109 | . 27 1 . . 56 25 Core Hits 86 | . 25 4 . . 34 23 Critical Kills . | . . . . . . . Critical Parts Destroyed . | . . . . . . . Critical Strikes 5 | . 2 . . . 3 . Burn 2 | . . . . . 2 . Blast 3 | . 2 . . . 1 . Melee Attacks . | . . . . . . . Impact . | . . . . . . . Slashing . | . . . . . . . Piercing . | . . . . . . . Sneak Attacks . | . . . . . . . Combat Hostiles . | . . . . . . . Follow-up Attacks . | . . . . . . . Damage Inflicted 4317 | . 1197 227 . . 1798 1095 Guns 1291 | . . . . . 741 550 Cannons 526 | . 284 35 . . 207 . Explosions 2495 | . 913 190 . . 847 545 Melee . | . . . . . . . Ramming 5 | . . 2 . . 3 . Kinetic 526 | . 284 35 . . 207 . Thermal 1291 | . . . . . 741 550 Explosive 2177 | . 913 190 . . 847 227 Electromagnetic 318 | . . . . . . 318 Impact . | . . . . . . . Slashing . | . . . . . . . Piercing . | . . . . . . . Highest Corruption 23 | . . . . . . 23 Average Corruption 5 | . . . . . . 5 Corruption Purged . | . . . . . . . Corruption Blocked . | . . . . . . . Effects 4 | . . . . . . 4 Message Errors 2 | . . . . . . 2 Weapon Failures 2 | . . . . . . 2 Overload Shots . | . . . . . . . Overflow Damage 86 | . 43 20 . . 23 . Projectiles 6 | . 6 . . . . . Explosions 80 | . 37 20 . . 23 . Melee . | . . . . . . . Knockbacks 5 | . 4 . . . 1 . Impact . | . . . . . . . Kinetic 5 | . 4 . . . 1 . Secondary . | . . . . . . . Self-Inflicted Damage 133 | . 128 5 . . . . Shots 7 | . 6 1 . . . . Rammed 3 | . . 1 . . 2 . Targets Rammed 3 | . . 1 . . 2 . Kicked . | . . . . . . . Crushed . | . . . . . . . Highest Temperature 81 | . 81 12 . . 72 51 Average Temperature 24 | . 28 6 . . 22 31 Received Heat Transfer 531 | . 108 . . . 243 180 Siege Activations . | . . . . . . . Robots Corrupted . | . . . . . . . Combat Hostiles . | . . . . . . . Parts Fried . | . . . . . . . Impact Corruptions . | . . . . . . . Robots Melted . | . . . . . . . Combat Hostiles . | . . . . . . . Parts Melted 4 | . . . . . 2 2 Heat Transferred 2664 | . . . . . 1591 1073 Parts Sabotaged . | . . . . . . . Parts Stolen . | . . . . . . . Parts Stripped . | . . . . . . . Power Chain Reactions 1 | . . . . . . 1 Alert | -11 -10 -10 -10 -9 -8 -7 ------- Run | Yrd Mat Min Exi Min Mat Fac Peak Influence 429 | . 264 180 . . 368 429 Initial 114 | . . 81 . . . 114 Average 170 | . 187 86 . . 234 220 Maximum Alert Level 2 | . 1 . . . 1 2 Low Security (%) 57 | 100 39 100 . 100 31 70 Level 1 41 | . 60 . . . 68 19 Level 2 1 | . . . . . . 10 Level 3 . | . . . . . . . Level 4 . | . . . . . . . Level 5 . | . . . . . . . High Security . | . . . . . . . Max Security . | . . . . . . . Squads Dispatched 9 | . 2 . . 1 3 3 Investigation 3 | . 2 . . 1 . . Extermination . | . . . . . . . Reinforcement 5 | . . . . . 3 2 Assault . | . . . . . . . Garrison 1 | . . . . . . 1 Intercept . | . . . . . . . Searches Triggered . | . . . . . . . Construction Impeded 1 | . . . . . . 1 Haulers Reinforced . | . . . . . . . Active Scanning Responses . | . . . . . . . Cargo Convoy Interrupts . | . . . . . . . Stealth | -11 -10 -10 -10 -9 -8 -7 --------- Run | Yrd Mat Min Exi Min Mat Fac Distress Signals 4 | . . . . . 4 . Communications Jammed . | . . . . . . . Distress Signals . | . . . . . . . Times Spotted 51 | . 13 3 . . 22 13 Peak Tracking Total 4 | . 3 3 . . 4 4 Tactical Retreats . | . . . . . . . Traps | -11 -10 -10 -10 -9 -8 -7 ------- Run | Yrd Mat Min Exi Min Mat Fac Traps Triggered 5 | . 2 . . . . 3 Indirectly 2 | . . . . . . 2 Trap Hack Attempts . | . . . . . . . Triggered . | . . . . . . . Disarmed . | . . . . . . . Reprogrammed . | . . . . . . . Reused . | . . . . . . . Traps Extracted . | . . . . . . . Installed . | . . . . . . . Triggered . | . . . . . . . Machines | -11 -10 -10 -10 -9 -8 -7 ---------- Run | Yrd Mat Min Exi Min Mat Fac Machines Disabled 8 | . 1 . . . 3 4 Max in Single Turn 2 | . 1 . . . 1 2 Garrison Access 1 | . . . . . 1 . Machines Repaired . | . . . . . . . Machines Dismantled . | . . . . . . . Machines Sabotaged . | . . . . . . . Overloaded Fab Kills . | . . . . . . . Hacking | -11 -10 -10 -10 -9 -8 -7 --------- Run | Yrd Mat Min Exi Min Mat Fac Machines Accessed 6 | . 2 . 1 1 1 1 Terminals 2 | . 2 . . . . . Fabricators . | . . . . . . . Repair Stations . | . . . . . . . Recycling Units . | . . . . . . . Scanalyzers . | . . . . . . . Garrison Access 2 | . . . . . 1 1 Total Hacks 9 | . 4 . 1 1 1 2 Successful 4 | . 1 . 1 1 1 . Failed 5 | . 3 . . . . 2 Catastrophic 1 | . 1 . . . . . Database Lockouts . | . . . . . . . Manual 5 | . 4 . 1 . . . Terminals 4 | . 4 . . . . . Fabricators . | . . . . . . . Repair Stations . | . . . . . . . Recycling Units . | . . . . . . . Scanalyzers . | . . . . . . . Garrison Access 3 | . . . . . 1 2 Terminal Hacks 3 | . 1 . 1 1 . . Open Door 1 | . . . . 1 . . Branch Access Points 1 | . 1 . . . . . Derelict Proto ID Bank 1 | . . . 1 . . . Fabricator Hacks . | . . . . . . . Repair Station Hacks . | . . . . . . . Recycling Unit Hacks . | . . . . . . . Scanalyzer . | . . . . . . . Garrison Access Hacks 1 | . . . . . 1 . Seal Access 1 | . . . . . 1 . Unauthorized Hacks . | . . . . . . . Terminals . | . . . . . . . Fabricators . | . . . . . . . Repair Stations . | . . . . . . . Recycling Units . | . . . . . . . Scanalyzers . | . . . . . . . Garrison Access . | . . . . . . . Data Cores Recovered . | . . . . . . . Used . | . . . . . . . Hacking Detections 3 | . 2 . . . . 1 Full Trace Events 1 | . 1 . . . . . Feedback Events . | . . . . . . . Feedback Blocked . | . . . . . . . Robot Schematics Acquired . | . . . . . . . Robots Built . | . . . . . . . Authchips . | . . . . . . . Time . | . . . . . . . Total Robot Build Rating . | . . . . . . . Part Schematics Acquired . | . . . . . . . Parts Built . | . . . . . . . Authchips . | . . . . . . . Time . | . . . . . . . Total Part Build Rating . | . . . . . . . Parts Repaired . | . . . . . . . Time . | . . . . . . . Parts Recycled . | . . . . . . . Recycled Matter . | . . . . . . . Retrieved Matter . | . . . . . . . Retrieved Components . | . . . . . . . Parts Scanalyzed . | . . . . . . . Part Schematics Acquired . | . . . . . . . Parts Damaged . | . . . . . . . Bothacking | -11 -10 -10 -10 -9 -8 -7 ------------ Run | Yrd Mat Min Exi Min Mat Fac Used RIF Installer . | . . . . . . . Robots Hacked . | . . . . . . . Non-combat . | . . . . . . . Combat . | . . . . . . . Robot Hacks Applied . | . . . . . . . Relay Couplers Released . | . . . . . . . Fabnet Peak Effective % . | . . . . . . . Robots Rewired . | . . . . . . . Allies Hacked . | . . . . . . . Hacks Repelled . | . . . . . . . Allies | -11 -10 -10 -10 -9 -8 -7 -------- Run | Yrd Mat Min Exi Min Mat Fac Total Allies 3 | . . 3 . . . . Largest Group 3 | . . 3 3 3 3 . Highest-Rated Group 40 | . . 40 40 40 40 . Highest-Rated Ally 16 | . . 16 16 16 16 . Total Orders . | . . . . . . . Ally Attacks 32 | . . . . . 32 . Total Damage 351 | . . . . . 351 . Kills 4 | . . . . . 4 . Allies Corrupted . | . . . . . . . Allies Melted . | . . . . . . . Intel | -11 -10 -10 -10 -9 -8 -7 ------- Run | Yrd Mat Min Exi Min Mat Fac Robot Analysis Total . | . . . . . . . Derelict Logs Recovered 2 | . . 1 . 1 . . Drone Launches . | . . . . . . . Drone Recoveries . | . . . . . . . Exploration | -11 -10 -10 -10 -9 -8 -7 ------------- Run | Yrd Mat Min Exi Min Mat Fac Turns Passed 2637 | 61 562 486 335 133 813 247 Spaces Moved 1397 | 40 299 284 208 79 386 101 Core 11 | 11 . . . . . . Treads 1386 | 29 299 284 208 79 386 101 Legs . | . . . . . . . Wheels . | . . . . . . . Hover . | . . . . . . . Flight . | . . . . . . . Fastest Speed 50 | 50 160 160 160 160 160 170 Average Speed 161 | 136 160 160 160 160 165 170 Slowest Speed 170 | 160 160 160 160 160 170 170 Overloaded Moves . | . . . . . . . Propulsion Burnouts . | . . . . . . . Robots Hopped . | . . . . . . . Cave-ins Triggered . | . . . . . . . Exploration Rate (%) 33 | 4 60 58 60 15 29 5 Regions Visited 6 Branch Regions 3 Pre-discovered Areas 1 | . . 1 . . . . Known Exits Taken 2 | . 1 . . . 1 . Unknown Exits Taken 4 | 1 . 1 1 1 . . Scrap Searched 1 | . . 1 . . . . Spaces Dug . | . . . . . . . Terrain Destroyed 200 | . 77 22 . . 98 3 Melee . | . . . . . . . Projectile . | . . . . . . . AOE 200 | . 77 22 . . 98 3 Terrain Rammed . | . . . . . . . Walls Destroyed . | . . . . . . . Machines Disabled . | . . . . . . . Actions | -11 -10 -10 -10 -9 -8 -7 --------- Run | Yrd Mat Min Exi Min Mat Fac Total 1587 | 44 335 304 210 85 476 133 Wait 46 | . . 11 2 5 20 8 Move 1391 | 39 298 283 207 78 385 101 Hop . | . . . . . . . Pick Up 1 | . . . . . 1 . Fast Attach 23 | 5 3 1 1 . 11 2 Attach . | . . . . . . . Detach 1 | . 1 . . . . . Swap 7 | . 2 1 . 2 2 . Drop 16 | . 3 . . . 13 . Fire 99 | . 28 7 . . 42 22 Melee . | . . . . . . . Ram . | . . . . . . . Kick . | . . . . . . . Crush 3 | . . 1 . . 2 . Escape Stasis . | . . . . . . . Rewire . | . . . . . . . Trap . | . . . . . . . Miscellaneous . | . . . . . . . Route ------- -11/Scrapyard -10/Materials (discovered 3 exits: [*Mat] / *Min x2) -10/Mines (discovered 2 exits: [*Mat] / *Exi) -10/Exiles -9/Mines -8/Materials (discovered 2 exits: *Fac x2) -7/Factory History --------- Turn | Location | Event 4 | -11/Scrapyard | Discovered new exit (range 15) 62 | -11/Scrapyard | Entered Materials 111 | -10/Materials | Identified exit to Mines 306 | -10/Materials | Build established: Mutant 496 | -10/Materials | Discovered new exit (range 16) 624 | -10/Materials | Entered Mines 814 | -10/Mines | Received a Rocket Launcher from a helpful Derelict 861 | -10/Mines | Learned 2 Materials zone layouts 935 | -10/Mines | Core integrity fell below 50% 1046 | -10/Mines | Assisted by bots powering up and referring to "LRC-V3" 1070 | -10/Mines | Discovered new exit (range 3) 1071 | -10/Mines | Learned location of Storage (-9) 1091 | -10/Mines | Deemed a non-threat by the Exiles lab entrance 1092 | -10/Mines | Discovered new exit (range 5) 1110 | -10/Mines | Entered Exiles 1110 | -10/Exiles | Accompanied by 3 allies 1149 | -10/Exiles | Met 8R-AWN 1178 | -10/Exiles | Met EX-HEX 1222 | -10/Exiles | Met EX-BIN 1242 | -10/Exiles | Aligned with FarCom system 1243 | -10/Exiles | Given EX-Vault access code 1282 | -10/Exiles | Opened EX-Vault 1296 | -10/Exiles | Found Modified TNC 1328 | -10/Exiles | Warned to stay clear of 0b10 Research branches 1373 | -10/Exiles | Met EX-DEC 1431 | -10/Exiles | Discovered new exit (range 10) 1445 | -10/Exiles | Left Exiles lab with Modified TNC 1445 | -10/Exiles | Entered Mines 1445 | -9/Mines | Accompanied by 3 allies 1501 | -9/Mines | Met a Derelict shopkeep closing up shop 1549 | -9/Mines | Discovered new exit (range 15) 1557 | -9/Mines | Learned Materials garrison access intel 1578 | -9/Mines | Entered Materials 1578 | -8/Materials | Accompanied by 3 allies 1578 | -8/Materials | Evolved 4 slots: Utility x2, Weapon x2 1579 | -8/Materials | Identified exit to Factory 1580 | -8/Materials | Loaded intel: 1 garrison access location 1825 | -8/Materials | Lost 3 allies 1960 | -8/Materials | Build established: Skirmisher 2290 | -8/Materials | Discovered exit to Factory (range 10) 2391 | -8/Materials | Entered Factory 2391 | -7/Factory | Evolved 2 slots: Utility x2 2584 | -7/Factory | Garrison activated, responded to threat 2626 | -7/Factory | System corruption reached 10% 2638 | -7/Factory | Self-destructed Last Messages --------------- U-05 Engineer lays Concrete. Arm. Treads severed. Hacking Suite destroyed. Hvy. Particle Gun destroyed. System corrupted by crushing effect (+5). U-05 Engineer lays Concrete. U-05 Engineer repairs door. U-05 Engineer lays Concrete. Core Analyzer destroyed. System corrupted by crushing effect (+2). U-05 Engineer lays Concrete. Lgt. Nuclear Core destroyed. System corrupted by crushing effect (+5). U-05 Engineer repairs door. U-05 Engineer lays Concrete. CUOWFGNA18JOIPOT|3 ZDZF&XU934R U-05 Engineer lays Concrete. B-48 Gladiator destroyed. K-01 Serf collects debris. U-05 Engineer lays Concrete. Map ----- +----------------------------------------------------+ | ######+####### #???????????????????????????? | | + #???????????????????????????? | | ##### # " " #???????????????????????????? | | "" """ #???# # "R" #???????????????????????????? | | "" """ #???# #? """ #???????????????????????????? | | "" """ #???# #? #???????????????????????????? | | #???# #??#####???????????????????????????? | | #???# #??????????????????????????????????? | | #####+###????????????????????????????????? | | # #????????????????????????????????? | | # """ ""#????????????????????????????????? | | ## """ ""#???????????##???????????????????? | | === ?# """ ""#??????????? ##?????????????????? | | == ?# G#??????????? ????????????????? | | == ?# """ ""#?????????? ????????????????? | | ? ? ?# """ ""#?????????? ????"????????????? | | ?=!?# """ ""#?????????? ? ""???????????? | | ?????# #?????????? """ ???????????? | | ????# ] ########### """ ^ "????????????? | | ??# # """ ""???????????? | | #######+## uu """??????????? | | ??"Y" =% !! ??????????? | | """ ^^ * g!! """??????????? | | %= !=!* %""??????????? | | #######+## /!!%! k ""???????????? | | ## ????# ## =l@!!* ????????? | | ????????# """ ## "%%%%%%= ! ""???????????? | | ????????# """ ## ""%%=!| !! ?????????? | | ????????#! """ ## """%! ! "" ?????????? | | ????????# ## ??????????? | | ????????# """ ## ! ??????????? | | ????????# """ ## =% %##+##+###### ??????????? | | ????????????"" ## #? ?? ???????????????? | | ????????????? ## #?? ?? ???????????????? | | ?????????????" ?#[* #??? ?????????????????? | | ?????????????" ##% #???? ????????????????? | | ?????????????" ?#[ ????###???????????????? | | ?????????????? ? = ??????????????????????? | | ??????????????#?###%[ u ??????????????????????? | | ???????????????????##### ??????????????????????? | | ???????????????????????? ??????????????????????? | | ?????????????????????????????????????????????????? | | ?????????????????????????????????????????????????? | | ?????????????????????????????????????????????????? | | ?????????????????????????????????????????????????? | | ?????????????????????????????????????????????????? | | ?????????????????????????????????????????????????? | | ?????????????????????????????????????????????????? | | ?????????????????????????????????????????????????? | | ?????????????????????????????????????????????????? | +----------------------------------------------------+ Best States ------------- Heat Dissipation 75 Energy Generation 16 Energy Capacity 290 Matter Stores 300 Matter Capacity 300 Sight Range 16 Terrain Scan Density 10 Evasion (%) 40 Core Analysis 6 Recoil Reduction 2 Offensive Hacking 10 Item Schematics ----------------- None Robot Schematics ------------------ None Fabricated ------------ Nothing Alien Tech Used ----------------- None Achievements -------------- None Challenges ------------ None Game ------ Seed CombatStealthBeamcaster Manual? 0 Play Time 00:15:47 Cumulative 76.7 hours Start 2024.08.19 @ 21:44:33 End 2024.08.19 @ 22:00:56 Sessions 3 Manual Loads 0 Difficulty Rogue Special Mode None Game No. 195 Rogue 120 Adventurer 75 Explorer 0 Win Type - Total 0 Types 0/0/0/0/0/0/0/0/0 Lore% 42 Gallery% 43 Achievement% 35 Wizard Run 0 Options --------- Layout 0 ASCII 0 Keyboard 0 Movement Mouse Keybinds 0 Fullscreen 1 Font 24/Smallcaps Map View 76x50 Zoom Use 0% Tactical HUD 0 Map Filters NONE Filters NONE Steam 1 RUN: d2e0d9cb-ea6d-4900-824e-205a64a51890